bitfinex/quotes_ETHUSD_20250115
["timestamp","ask_amount","ask_price","bid_price","bid_amount"]
[1736957958995,0.005,3358.4,3357.9,8.10318837]
[1736957959203,0.005,3358.4,3358.0,7.52252006]
[1736957959426,0.005,3358.4,3358.2,0.55]
[1736957959624,0.005,3358.4,3358.3,0.21]
[1736957962098,0.005,3358.4,3358.3,5.33513837]
[1736957962405,0.005,3358.4,3358.3,5.88513837]
[1736957962605,0.005,3358.4,3358.3,9.45431944]
[1736957963129,0.005,3358.4,3358.3,5.12513837]
[1736957963302,0.005,3358.4,3358.3,5.33513837]
[1736957963906,0.005,3358.4,3358.3,5.12513837]
[1736957964236,2.97814,3357.8,3357.7,0.21]
[1736957964443,2.97833,3357.6,3357.0,1.192581]
[1736957964621,2.97867,3357.2,3356.6,35.0]
[1736957964829,2.97863,3357.3,3356.7,0.21]
[1736957965222,3.48325346,3357.5,3356.1,1.10116829]
[1736957965426,2.97884,3357.1,3356.2,35.21]
[1736957965739,2.97888,3357.0,3356.3,0.21]
[1736957966451,2.97888,3357.0,3356.4,35.0]
[1736957967153,2.97901,3356.9,3356.3,0.21]
[1736957967633,2.97906,3356.8,3356.3,0.21]
[1736957968277,0.377261,3356.9,3356.3,0.21]
[1736957968415,3.00882968,3356.8,3356.1,1.10116829]
[1736957968618,2.97928,3356.6,3356.2,0.21]
[1736957968959,2.97932,3356.5,3356.2,0.21]
[1736957969164,3.356231,3356.9,3356.2,0.21]
[1736957969165,0.297932,3356.4,3356.2,0.21]
[1736957969335,4.27685346,3356.3,3356.1,0.21]
[1736957969755,3.02980968,3356.2,3354.8,6.31848537]
[1736957969923,2.98036,3355.3,3354.9,35.0]
[1736957970123,2.98036,3355.3,3354.9,35.21]
[1736957970338,2.98036,3355.3,3354.9,35.0]
[1736957970728,2.98036,3355.3,3355.0,0.21]
[1736957971063,0.02980968,3355.2,3353.5,1.193779]
[1736957971374,3.48325346,3354.6,3353.7,0.21]
[1736957971521,6.77404,3355.2,3353.7,35.0]
[1736957971522,0.7936,3354.3,3353.7,35.0]
[1736957971720,0.7936,3354.3,3353.0,2.343869]
[1736957971721,2.98187,3353.6,3353.0,2.343869]
[1736957971961,3.0,3353.9,3353.0,2.343869]
[1736957972259,2.98178,3353.7,3353.0,2.343869]
[1736957972460,2.98231,3353.1,3353.0,2.343869]
[1736957972969,3.03700827,3353.1,3353.0,2.343869]
[1736957976076,0.05469827,3353.1,3353.0,2.343869]
[1736957976361,3.03700827,3353.1,3353.0,2.343869]
[1736957976564,0.05469827,3353.1,3353.0,2.343869]
[1736957976736,0.05469827,3353.1,3353.0,37.343869]
[1736957977862,0.05469827,3353.1,3353.0,37.553869]
[1736957978169,0.05469827,3353.1,3353.0,40.536269]
[1736957978469,0.05469827,3353.1,3353.0,37.553869]
[1736957978837,0.05469827,3353.1,3353.0,38.103869]
[1736957979037,0.05469827,3353.1,3353.0,41.086269]
[1736957979269,3.73254,3354.2,3353.1,5.67513837]
[1736957979467,0.05469827,3354.1,3353.1,5.67513837]
[1736957979672,0.05469827,3354.1,3353.1,8.65740837]
[1736957979873,0.05469827,3354.1,3353.4,35.0]
[1736957980841,0.05469827,3354.1,3353.4,37.98204]
[1736957981041,0.05469827,3354.1,3353.7,2.98173]
[1736957981242,0.05469827,3354.1,3353.4,35.0]
[1736957981441,0.05469827,3354.1,3353.5,2.98194]
[1736957981671,0.05469827,3354.1,3353.6,0.55]
[1736957982296,0.05469827,3354.1,3353.4,35.0]
[1736957982575,0.05469827,3354.1,3353.5,0.55]
[1736957982942,0.05469827,3354.1,3353.4,35.0]
[1736957984372,0.05469827,3354.1,3353.6,2.98184]
[1736957984533,0.05469827,3354.1,3353.5,0.55]
[1736957984731,0.05469827,3354.1,3354.0,2.98151]
[1736957984930,0.05469827,3354.1,3354.0,3.53151]
[1736957985135,0.05469827,3354.1,3354.0,8.65664837]
[1736957985375,0.7512,3355.1,3354.2,5.12513837]
[1736957985574,2.98062,3355.0,3354.3,0.21]
[1736957985773,2.98115,3354.4,3354.3,0.21]
[1736957986471,3.73235,3354.4,3354.3,0.21]
[1736957986634,0.7512,3354.4,3353.2,35.0]
[1736957986834,3.01104968,3354.3,3353.3,0.21]
[1736957987106,2.98155,3354.0,3353.3,0.21]
[1736957987375,2.98192,3353.6,3353.3,0.21]
[1736957987538,2.9817,3353.8,3353.3,0.21]
[1736957987739,0.05469827,3353.5,3353.4,0.21]
[1736957988549,3.03664827,3353.5,3353.4,0.21]
[1736957988752,3.3654331,3353.5,3353.4,0.21]
[1736957989047,2.98664827,3353.5,3353.4,0.21]
[1736957989250,0.00469827,3353.5,3353.4,0.21]
[1736957989570,2.98195,3353.5,3353.4,0.21]
[1736957990470,0.7512,3353.6,3353.4,0.21]
[1736957991636,7.59383057,3354.5,3353.4,0.21]
[1736957991830,2.98116,3354.4,3353.5,0.02981622]
[1736957992078,0.822,3354.5,3353.5,0.02981622]
[1736957992079,2.98134,3354.2,3353.6,35.0]
[1736957992285,3.0,3354.4,3353.6,35.0]
[1736957992591,2.98132,3354.3,3353.6,35.0]
[1736957992796,3.0,3354.4,3353.4,0.21]
[1736957993081,0.822,3354.5,3353.4,0.21]
[1736957993271,0.822,3354.5,3353.6,2.98179]
[1736957993446,2.98081,3354.8,3353.7,0.55]
[1736957993646,4.30719725,3354.9,3353.8,2.98167]
[1736957993847,4.30719725,3354.9,3353.9,3.53156]
[1736957994073,4.30719725,3355.3,3354.1,5.67513837]
[1736957994248,0.822,3355.3,3354.1,5.67513837]
[1736957994446,0.822,3355.3,3354.2,3.84697784]
[1736957994865,3.80235,3355.3,3354.2,3.84697784]
[1736957995095,0.822,3355.3,3354.2,0.86566784]
[1736957995453,3.80238,3355.3,3354.2,3.84696784]
[1736957995959,3.80238,3355.3,3354.3,2.98122]
[1736957996161,0.822,3355.3,3354.4,3.93332262]
[1736957996467,3.80206,3355.7,3354.6,5.12513837]
[1736957996658,0.822,3355.7,3354.8,2.98072]
[1736957996855,2.97984,3355.9,3354.8,2.98072]
[1736957997188,7.58977782,3356.1,3355.1,5.12513837]
[1736957997479,7.58977782,3356.1,3355.1,0.55]
[1736957997646,7.58978782,3356.1,3355.0,5.12513837]
[1736957997848,7.58978782,3356.1,3355.1,2.98052]
[1736957998079,2.97975,3356.0,3355.0,5.12513837]
[1736957998257,2.97975,3356.0,3355.0,6.94300883]
[1736957998659,4.61012782,3356.1,3355.0,5.12513837]
[1736957998886,2.98031,3355.4,3354.9,35.0]
[1736957999184,2.98037,3355.3,3355.0,0.21]
[1736957999486,0.822,3355.7,3355.0,0.21]
[1736957999999,2.98043,3355.3,3355.0,0.21]
[1736958000202,3.80206,3355.7,3354.5,0.55]
[1736958000203,2.98014,3355.6,3354.5,0.55]
[1736958000402,2.98014,3355.6,3354.6,3.75841384]
[1736958000702,2.98062,3355.1,3354.6,0.21]
[1736958000865,2.98061,3355.1,3354.7,0.21]
[1736958001068,3.78812782,3355.6,3354.7,0.21]
[1736958001367,3.8179375,3355.6,3354.7,0.21]
[1736958001588,2.98056,3355.1,3354.7,0.21]
[1736958001808,3.576647,3355.1,3354.4,5.12513837]
[1736958002009,0.596087,3355.1,3354.1,5.12513837]
[1736958002207,0.822,3354.8,3354.1,5.12513837]
[1736958002365,2.98098,3354.6,3354.0,0.21]
[1736958002568,2.9816,3353.9,3353.2,5.12513837]
[1736958002767,2.9816,3353.9,3353.6,0.21]
[1736958003012,2.98128,3354.3,3353.6,0.21]
[1736958003309,2.98173,3353.8,3353.6,0.21]
[1736958003697,0.02980968,3354.4,3353.6,0.21]
[1736958004008,2.98135,3354.2,3353.6,0.21]
[1736958004304,2.9815,3354.1,3353.7,0.21]
[1736958004508,3.0,3354.5,3353.7,0.21]
[1736958004710,2.98089,3354.7,3353.7,0.21]
[1736958005009,4.96751308,3355.1,3353.9,5.12513837]
[1736958005212,0.7517,3355.2,3354.1,5.12513837]
[1736958005506,2.98045,3355.2,3354.2,2.98131]
[1736958005829,0.7517,3355.6,3354.4,2.98115]
[1736958006037,0.78150968,3355.6,3354.3,35.0]
[1736958006175,0.78150968,3355.6,3354.4,0.21]
[1736958006176,0.7517,3355.2,3354.4,0.21]
[1736958006534,0.37517,3355.1,3354.4,0.21]
[1736958006985,2.98107,3354.5,3354.4,0.21]
[1736958007480,2.98107,3354.5,3353.2,5.12513837]
[1736958007670,2.98107,3354.5,3353.3,35.21]
[1736958007866,0.02980968,3354.4,3353.3,35.21]
[1736958008106,0.7517,3354.6,3353.3,35.21]
[1736958008320,1.51165044,3354.6,3353.3,35.21]
[1736958008499,2.98142,3354.1,3353.3,35.21]
[1736958008676,2.98146,3354.1,3353.3,0.21]
[1736958008984,2.9818,3353.7,3353.2,0.21]
[1736958010526,2.98124,3354.3,3353.2,0.21]
[1736958010827,0.7517,3354.6,3353.3,0.55]
[1736958010973,4.53982782,3355.0,3353.5,0.55]
[1736958011174,2.98048,3355.2,3354.2,5.12513837]
[1736958011368,0.7517,3355.5,3354.4,5.12513837]
[1736958011614,0.7517,3355.5,3354.6,2.98097]
[1736958011820,2.97991,3355.8,3354.7,1.66799479]
[1736958012022,4.53982782,3355.9,3354.7,1.66799479]
[1736958012023,2.98012,3355.6,3354.7,5.12513837]
[1736958012194,4.53982782,3355.9,3354.7,5.12513837]
[1736958012391,2.98008,3355.7,3354.7,40.12513837]
[1736958012720,2.98025,3355.5,3354.7,40.12513837]
[1736958013071,2.98028,3355.4,3354.7,40.12513837]
[1736958013324,2.98032,3355.4,3354.7,40.12513837]
[1736958013628,2.98045,3355.2,3354.7,40.12513837]
[1736958013824,4.53982782,3355.9,3354.7,40.12513837]
[1736958013825,2.98027,3355.4,3354.7,40.12513837]
[1736958014125,2.9802,3355.5,3354.7,40.12513837]
[1736958014294,2.98062,3355.0,3354.3,0.21]
[1736958014478,2.98062,3355.0,3354.3,0.83166284]
[1736958014672,0.02980968,3355.4,3354.4,0.21]
[1736958014874,2.9808,3354.8,3354.4,0.21]
[1736958015081,0.7517,3355.2,3354.4,0.21]
[1736958015316,2.98077,3354.9,3354.4,0.21]
[1736958016333,2.98142,3354.1,3354.0,0.21]
[1736958016471,2.98156,3354.0,3353.7,0.21]
[1736958016675,0.78150968,3354.3,3353.7,0.21]
[1736958016929,2.98146,3354.1,3353.7,0.21]
[1736958017272,2.98169,3353.8,3353.7,0.21]
[1736958017480,2.98205,3353.4,3353.0,2.343869]
[1736958017678,2.98222,3353.2,3353.1,0.21]
[1736958017899,2.98231,3353.1,3353.0,2.343869]
[1736958020152,2.9824,3353.0,3351.1,5.12513837]
[1736958020443,3.7517,3353.1,3351.2,35.21]
[1736958020444,3.78812782,3352.2,3351.2,35.21]
[1736958020748,2.98336,3352.0,3351.2,35.21]
[1736958021247,3.78812782,3352.2,3351.2,35.21]
[1736958021605,2.98338,3352.0,3351.2,35.21]
[1736958021805,3.78812782,3352.2,3351.2,35.21]
[1736958022010,0.7517,3352.6,3351.2,35.21]
[1736958022551,2.98297,3352.4,3351.3,0.21]
[1736958022710,0.7517,3352.6,3351.3,0.21]
[1736958022711,2.98306,3352.3,3351.3,0.21]
[1736958022908,2.98306,3352.3,3351.2,37.98396]
[1736958023130,6.77087782,3352.7,3351.4,0.21]
[1736958023131,6.77081782,3352.7,3351.4,0.21]
[1736958023411,2.98276,3352.6,3351.5,3.19372]
[1736958023624,2.98276,3352.6,3351.6,0.88688584]
[1736958023941,2.98304,3352.3,3351.7,35.0]
[1736958024143,0.02980968,3352.6,3351.7,35.0]
[1736958024331,2.98319,3352.2,3351.7,35.0]
[1736958024538,2.98323,3352.1,3351.5,5.33513837]
[1736958025051,0.375593,3352.0,3351.6,0.21]
[1736958025258,0.375593,3352.0,3351.4,0.21]
[1736958025409,2.98332,3352.0,3351.4,0.21]
[1736958025611,3.0,3352.1,3350.9,0.46763187]
[1736958025811,0.02980968,3352.0,3351.0,0.21]
[1736958026011,2.9837,3351.6,3351.0,0.21]
[1736958026251,3.0,3352.1,3351.0,0.21]
[1736958026552,3.73937278,3352.0,3351.0,0.21]
[1736958026865,0.75608278,3352.0,3351.0,0.21]
[1736958027059,2.98376,3351.5,3351.0,0.21]
[1736958027214,0.75608278,3352.0,3351.0,0.21]
[1736958027417,2.98352,3351.8,3351.0,0.21]
[1736958027735,2.98356,3351.7,3351.0,0.21]
[1736958027909,2.98356,3351.7,3350.8,2.146]
[1736958027910,2.98367,3351.6,3351.1,0.21]
[1736958028247,0.80250968,3351.5,3350.2,0.46775479]
[1736958028443,2.98437,3350.8,3350.2,0.46775479]
[1736958028648,2.98437,3350.8,3350.2,0.67775479]
[1736958029031,3.78812782,3351.2,3350.2,0.67775479]
[1736958029243,2.98445,3350.7,3350.3,0.21]
[1736958029409,2.98435,3350.9,3350.3,0.21]
[1736958029607,2.98436,3350.8,3350.3,0.21]
[1736958030011,2.98463,3350.5,3350.2,0.46775479]
[1736958030265,0.43931856,3351.1,3350.1,0.21]
[1736958030266,2.98457,3350.6,3350.1,0.21]
[1736958030413,2.98457,3350.6,3349.6,0.60051789]
[1736958030743,2.98457,3350.6,3349.7,0.21]
[1736958031142,2.98427,3350.9,3349.8,2.98524]
[1736958031448,3.78812782,3350.7,3349.3,0.46789664]
[1736958031749,2.98489,3350.2,3349.3,0.21]
[1736958032147,2.98524,3349.9,3349.3,0.21]
[1736958032445,3.283814,3349.8,3349.4,0.04342484]
[1736958032648,3.283814,3349.8,3349.4,0.0635834]
[1736958032821,3.78812782,3350.7,3349.4,0.2735834]
[1736958033233,2.98484,3350.3,3349.4,0.2735834]
[1736958034048,2.98465,3350.5,3349.4,3.2591034]
[1736958034758,2.98481,3350.3,3349.4,0.2735834]
[1736958034957,2.98465,3350.5,3349.4,0.2735834]
[1736958035258,2.98481,3350.3,3349.4,0.2735834]
[1736958035617,3.73919778,3350.5,3349.4,3.2591834]
[1736958035818,0.75454778,3350.5,3349.4,3.2591834]
[1736958036049,0.75454778,3350.5,3349.6,2.98542]
[1736958036255,2.9846,3350.6,3349.7,0.06340706]
[1736958036455,3.78812782,3350.7,3349.4,3.19559]
[1736958036456,3.78812782,3350.7,3349.4,0.21]
[1736958036663,6.77260782,3350.7,3349.5,3.04890878]
[1736958036955,3.78812782,3350.7,3349.6,3.53539]
[1736958037121,3.75706,3350.8,3349.7,2.98532]
[1736958037322,0.7727,3350.8,3349.7,0.74285541]
[1736958037522,3.0,3351.1,3349.8,2.98524]
[1736958037725,2.98438,3350.8,3349.8,2.98524]
[1736958038051,3.75502,3351.6,3350.0,0.55]
[1736958038253,3.78812782,3351.2,3350.1,0.06318998]
[1736958038452,2.98453,3350.7,3350.1,0.06318998]
[1736958038750,2.98463,3350.5,3349.8,5.12513837]
[1736958038953,2.98473,3350.4,3350.2,0.06316886]
[1736958039114,2.98469,3350.5,3349.5,5.12513837]
[1736958039318,2.98469,3350.5,3350.3,0.06314774]
[1736958039546,0.67728178,3350.4,3349.5,8.11064837]
[1736958039746,3.66200178,3350.4,3349.5,5.12513837]
[1736958039952,2.98483,3350.3,3349.6,0.06324159]
[1736958040155,2.985,3350.1,3349.6,0.06324159]
[1736958040459,3.28662097,3350.0,3349.7,0.21]
[1736958040753,3.28662097,3350.0,3349.8,0.06335647]
[1736958040956,0.30148097,3350.0,3349.8,0.06335647]
[1736958041156,0.30148097,3350.0,3349.6,0.21]
[1736958041534,0.30148097,3350.0,3349.7,0.06357405]
[1736958041747,0.3286481,3349.9,3349.7,0.06357405]
[1736958041943,2.98505,3350.1,3349.7,0.06357405]
[1736958042155,0.02980968,3350.3,3348.9,2.98601]
[1736958042349,0.7713,3349.9,3349.0,0.21]
[1736958042534,3.75651,3349.9,3349.0,0.27372197]
[1736958042741,2.98543,3349.7,3349.0,0.27372197]
[1736958042943,3.659664,3349.6,3349.0,0.27372197]
[1736958043263,3.0,3350.1,3349.0,0.27372197]
[1736958043465,2.98514,3350.0,3349.0,3.25967197]
[1736958043663,3.78812782,3350.2,3349.0,3.25967197]
[1736958043664,2.98516,3349.9,3349.0,0.06372197]
[1736958043961,2.98516,3349.9,3349.1,0.21]
[1736958044161,2.98501,3350.1,3349.1,0.2741674]
[1736958044464,3.33094609,3350.0,3349.2,0.21]
[1736958044690,3.33094609,3350.0,3349.3,0.06412513]
[1736958045663,0.34586609,3350.0,3349.3,0.06412513]
[1736958046038,0.8056,3350.7,3349.4,0.55]
[1736958046228,6.47945586,3350.8,3349.7,2.98529]
[1736958046429,3.49509586,3351.2,3350.0,0.55]
[1736958046763,6.47886586,3351.5,3350.3,5.12513837]
[1736958046941,2.98356,3351.7,3350.7,2.98443]
[1736958047138,3.49509586,3351.8,3350.6,5.12513837]
[1736958047352,0.8056,3352.1,3350.8,3.04796075]
[1736958047550,2.98332,3352.0,3350.9,2.98424]
[1736958047765,3.0,3352.1,3350.9,0.06317826]
[1736958047965,6.47863586,3351.8,3350.9,0.06317826]
[1736958048160,3.49509586,3351.8,3351.0,5.67513837]
[1736958048468,3.49509586,3352.6,3351.5,2.98373]
[1736958048677,3.49509586,3352.6,3351.6,4.06753734]
[1736958048873,3.49509586,3352.6,3351.6,0.2730305]
[1736958049063,3.49509586,3352.6,3351.7,2.98355]
[1736958049261,7.28321586,3352.9,3351.8,0.0626791]
[1736958049464,2.98234,3353.1,3352.0,2.98326]
[1736958049677,2.98234,3353.1,3352.1,0.06242445]
[1736958049838,0.298234,3353.0,3352.1,0.06242445]
[1736958050171,2.98232,3353.1,3352.0,2.98329]
[1736958050479,2.98241,3353.0,3352.1,0.06138375]
[1736958050676,2.98241,3353.0,3351.9,2.98334]
[1736958050834,4.57853534,3353.4,3352.1,5.67513837]
[1736958051040,2.98192,3353.6,3352.4,2.98288]
[1736958051236,2.98206,3353.4,3352.5,0.06129938]
[1736958051468,2.98206,3353.4,3352.3,5.12513837]
[1736958051643,2.98206,3353.4,3352.4,0.06085455]
[1736958051843,2.98232,3353.1,3352.4,0.06085455]
[1736958052067,0.298232,3353.0,3352.4,0.06085455]
[1736958052243,0.298232,3353.0,3352.3,5.12513837]
[1736958052468,0.298232,3353.0,3352.4,0.06085455]
[1736958052649,0.298232,3353.0,3352.4,0.27085455]
[1736958052834,0.298232,3353.0,3352.4,0.21]
[1736958053040,2.98257,3352.9,3352.4,0.21]
[1736958053240,0.3280802,3352.8,3352.5,0.06085797]
[1736958053436,2.98275,3352.6,3352.5,0.06085797]
[1736958053676,2.98275,3352.6,3352.4,0.21]
[1736958053873,2.98284,3352.5,3352.4,0.21]
[1736958054173,0.3280802,3352.8,3352.4,0.21]
[1736958054476,0.7852,3352.9,3352.4,0.21]
[1736958054678,0.298232,3353.0,3351.5,7.12513837]
[1736958054847,0.75604553,3353.5,3351.8,0.55]
[1736958055044,2.98199,3353.5,3352.4,0.55]
[1736958055238,0.02980968,3353.7,3352.5,0.06097565]
[1736958055476,2.98198,3353.5,3352.5,0.55]
[1736958055683,2.98198,3353.5,3352.6,0.06095456]
[1736958055994,3.28322897,3353.4,3352.7,0.21]
[1736958056497,2.98221,3353.3,3352.8,0.06091238]
[1736958056662,0.30117897,3353.4,3352.8,0.06091238]
[1736958056863,0.30117897,3353.4,3352.7,0.21]
[1736958057059,0.30117897,3353.4,3352.8,0.06091238]
[1736958057264,3.0,3353.7,3352.8,0.06091238]
[1736958057497,3.79333534,3353.8,3352.8,0.06091238]
[1736958057698,6.77503534,3353.8,3352.8,0.06091238]
[1736958057903,6.77503534,3353.8,3352.8,3.04346238]
[1736958058100,0.7852,3354.2,3352.9,5.67513837]
[1736958058288,2.98153,3354.0,3353.0,2.98238]
[1736958058602,2.98153,3354.0,3353.1,0.06036378]
[1736958059003,5.98135,3354.2,3353.1,0.06036378]
[1736958059165,2.98144,3354.1,3353.1,0.06036378]
[1736958059367,2.98161,3353.9,3353.1,0.06036378]
[1736958059663,2.98168,3353.9,3352.9,5.12513837]
[1736958059866,2.98171,3353.8,3353.0,0.06032606]
[1736958060387,1.00728721,3354.1,3353.0,0.06032606]
[1736958060707,6.77460534,3354.3,3353.2,0.55]
[1736958060866,3.79333534,3354.3,3353.4,3.53199]
[1736958061213,0.7852,3355.6,3353.8,5.67513837]
[1736958061363,2.9803,3355.4,3354.3,2.98116]
[1736958061733,0.37655,3355.3,3354.4,0.08868595]
[1736958061871,2.98009,3355.6,3354.6,2.98096]
[1736958062227,3.79333534,3355.8,3354.7,0.60881569]
[1736958062371,2.98,3355.7,3354.7,0.05881569]
[1736958062567,3.79333534,3355.8,3354.2,2.98131]
[1736958062893,2.98078,3354.9,3354.3,0.81889996]
[1736958063069,2.98087,3354.8,3354.3,0.26889996]
[1736958063408,2.98087,3354.8,3354.3,0.05889996]
[1736958063409,2.98115,3354.4,3354.3,0.05889996]
[1736958063615,2.98142,3354.1,3354.0,0.21]
[1736958063819,0.02980968,3354.3,3353.0,5.12513837]
[1736958063981,2.98193,3353.6,3352.5,2.98282]
[1736958064188,0.02980968,3354.0,3353.1,0.05685816]
[1736958064482,2.98235,3353.1,3352.9,0.21]
[1736958064916,2.98235,3353.1,3352.8,0.21]
[1736958065182,2.98222,3353.2,3352.8,0.21]
[1736958065389,2.98222,3353.2,3352.9,0.05502447]
[1736958065683,2.98222,3353.2,3352.8,0.21]
[1736958065893,2.98178,3353.7,3352.9,0.05502447]
[1736958066180,2.98194,3353.6,3353.0,0.21]
[1736958066503,0.67751153,3353.7,3353.1,0.05568285]
[1736958066691,0.75,3354.1,3353.1,0.05568285]
[1736958066893,6.31224565,3354.2,3353.0,0.21]
[1736958066894,0.30109597,3354.2,3353.0,0.21]
[1736958067076,0.75,3354.5,3353.3,5.12513837]
[1736958067281,0.298078,3354.9,3353.4,5.21058804]
[1736958067514,2.98058,3355.1,3353.7,5.12513837]
[1736958067736,6.77372534,3355.3,3354.0,5.12513837]
[1736958067886,7.52324534,3355.8,3354.2,5.12513837]
[1736958068194,7.52324534,3355.8,3354.3,0.05529762]
[1736958068195,2.98101,3354.6,3354.3,0.05529762]
[1736958068398,2.98115,3354.4,3354.3,0.05529762]
[1736958068601,2.98089,3354.7,3354.1,0.21]
[1736958069013,2.98133,3354.2,3354.1,0.21]
[1736958069493,2.98111,3354.5,3353.9,0.21]
[1736958069699,2.98151,3354.0,3353.4,5.12513837]
[1736958069932,2.98163,3353.9,3353.5,0.21]
[1736958070104,6.77460534,3354.3,3353.6,0.21]
[1736958070304,0.298111,3354.4,3353.6,0.21]
[1736958070517,3.32792068,3354.4,3353.6,0.21]
[1736958070703,2.98186,3353.7,3353.3,0.21]
[1736958071104,2.98142,3354.1,3353.3,0.21]
[1736958071307,2.98198,3353.5,3353.3,0.21]
[1736958071834,2.98207,3353.4,3353.2,0.21]
[1736958072358,2.98213,3353.3,3353.2,0.21]
[1736958072556,2.98207,3353.4,3353.2,0.21]
[1736958072695,0.298207,3353.4,3353.2,0.21]
[1736958072903,2.98178,3353.7,3352.9,0.21]
[1736958073104,2.9822,3353.3,3352.9,0.21]
[1736958073446,2.98225,3353.2,3352.9,0.21]
[1736958073631,2.9823,3353.2,3352.9,0.21]
[1736958073839,0.02980968,3353.7,3353.0,0.05492979]
[1736958074013,2.98231,3353.1,3352.3,5.12513837]
[1736958074347,3.79333534,3353.3,3352.4,0.05505632]
[1736958074348,3.79333534,3352.8,3352.4,0.05505632]
[1736958074499,2.98284,3352.5,3352.4,0.05505632]
[1736958074704,3.01264968,3352.5,3351.9,0.21]
[1736958074923,2.98328,3352.1,3351.9,0.21]
[1736958075111,2.98328,3352.1,3352.0,0.0533249]
[1736958075694,2.98348,3351.8,3351.6,0.21]
[1736958075931,2.98348,3351.8,3351.7,0.0533882]
[1736958076257,2.98348,3351.8,3351.1,0.21]
[1736958076454,0.02980968,3352.0,3351.1,0.21]
[1736958076606,2.98366,3351.6,3351.2,0.05349373]
[1736958077452,2.98338,3351.9,3351.2,0.05349373]
[1736958077594,2.98383,3351.4,3351.2,0.05349373]
[1736958077998,2.98383,3351.4,3350.5,5.12513837]
[1736958077999,3.79333534,3351.7,3350.9,0.21]
[1736958078426,3.79333534,3351.7,3351.0,0.05177364]
[1736958078624,2.98376,3351.5,3351.0,0.05177364]
[1736958078823,2.98383,3351.4,3351.0,0.05177364]
[1736958079024,2.98383,3351.4,3351.0,0.26177364]
[1736958079222,0.67768553,3351.6,3351.0,0.26177364]
[1736958079426,2.98385,3351.4,3351.0,0.21]
[1736958079602,2.98385,3351.4,3351.1,0.05175253]
[1736958079796,2.98385,3351.4,3351.0,0.21]
[1736958080051,2.98399,3351.3,3351.0,0.21]
[1736958080336,0.74548709,3351.4,3351.0,0.21]
[1736958080502,3.72932709,3351.4,3351.0,0.21]
[1736958080697,3.0,3351.4,3350.0,0.59002054]
[1736958080898,3.79333534,3351.2,3350.1,0.05336589]
[1736958081133,2.98385,3351.4,3350.2,0.02984578]
[1736958081327,2.98385,3351.4,3350.4,2.9847]
[1736958081498,2.98385,3351.4,3350.5,0.29847]
[1736958081844,3.0,3351.6,3350.6,0.05326029]
[1736958082212,2.98409,3351.2,3350.0,3.19507]
[1736958082427,0.02980968,3351.5,3350.0,0.21]
[1736958082609,3.79333534,3351.7,3350.0,0.21]
[1736958082610,3.79333534,3351.7,3350.6,2.98451]
[1736958082802,1.4306175,3352.0,3350.8,2.98436]
[1736958083006,3.6639875,3352.0,3350.9,0.05319695]
[1736958083414,3.79333534,3352.2,3351.0,8.10926837]
[1736958083415,6.77645534,3352.2,3351.0,8.10926837]
[1736958083627,3.79333534,3352.2,3351.1,0.21]
[1736958083829,2.98352,3351.8,3351.1,0.26315473]
[1736958084134,6.01304968,3352.1,3351.2,0.21]
[1736958084336,2.98355,3351.8,3351.2,0.21]
[1736958084523,2.98376,3351.5,3351.3,0.05311251]
[1736958084724,2.98382,3351.4,3351.3,0.05311251]
[1736958084933,2.98382,3351.4,3351.1,0.21]
[1736958085560,2.98382,3351.4,3351.2,0.05313362]
[1736958085905,2.98382,3351.4,3351.1,0.21]
[1736958086124,3.01352968,3351.6,3351.2,0.05313362]
[1736958086352,2.98376,3351.5,3351.2,0.05313362]
[1736958086921,2.98386,3351.4,3351.2,0.05313362]
[1736958087135,2.98366,3351.6,3351.2,0.05313362]
[1736958087336,2.98366,3351.6,3351.0,0.21]
[1736958087655,0.02980968,3351.6,3351.1,0.05458145]
[1736958087844,3.79333534,3351.7,3351.1,0.05458145]
[1736958088051,2.98358,3351.7,3351.1,0.05458145]
[1736958088263,2.98337,3352.0,3351.1,0.05458145]
[1736958088740,2.98339,3351.9,3351.1,0.05458145]
[1736958088929,9.77650534,3352.2,3351.1,0.05458145]
[1736958089124,2.98345,3351.9,3351.1,0.05458145]
[1736958089331,1.35095053,3352.1,3351.1,0.05458145]
[1736958089680,2.98347,3351.8,3351.1,0.05458145]
[1736958089818,0.75,3352.4,3351.1,5.17971982]
[1736958090023,2.98311,3352.3,3351.2,8.10912837]
[1736958090222,2.98311,3352.3,3351.3,0.83737098]
[1736958090467,2.98311,3352.3,3351.3,0.89190531]
[1736958090671,3.75,3352.9,3351.3,0.89190531]
[1736958090672,2.98231,3353.1,3351.9,2.98337]
[1736958090853,3.79333534,3353.7,3352.0,0.02982765]
[1736958091068,2.98213,3353.4,3352.4,2.98293]
[1736958091226,2.98198,3353.5,3352.2,5.15496158]
[1736958091427,2.98166,3353.9,3352.8,2.9825]
[1736958091626,3.79333534,3354.1,3353.1,2.98225]
[1736958091627,6.77482534,3354.1,3353.1,2.98225]
[1736958091856,3.79333534,3354.6,3353.2,3.22201779]
[1736958092061,6.77435534,3354.6,3353.2,5.38926206]
[1736958092278,2.98168,3353.9,3353.2,5.38926206]
[1736958092579,3.79333534,3354.1,3353.2,5.38926206]
[1736958092949,3.79333534,3354.1,3353.2,5.33513837]
[1736958093195,0.67746153,3354.0,3353.3,0.05410261]
[1736958093336,2.98195,3353.6,3353.3,0.05410261]
[1736958093587,2.982,3353.5,3353.3,0.05410261]
[1736958093786,2.98204,3353.4,3353.3,0.05410261]
[1736958094019,2.98213,3353.3,3353.2,0.21]
[1736958094682,2.98226,3353.2,3352.6,0.21]
[1736958094932,2.98226,3353.2,3352.7,0.05158994]
[1736958095121,2.98232,3353.1,3352.7,0.05158994]